bitfinex/quotes_SOLUSD_20240626
["timestamp","ask_amount","ask_price","bid_price","bid_amount"]
[1719386367133,20.0,137.88,137.84,7.2544]
[1719386367448,20.0,137.88,137.87,7.2532]
[1719386367952,13.13489363,137.93,137.89,7.2521]
[1719386368255,13.13489363,137.93,137.88,25.3834]
[1719386368256,20.0,137.92,137.88,25.3834]
[1719386368543,20.0,137.92,137.91,7.2511]
[1719386368748,5.08172297,137.94,137.91,7.2511]
[1719386369042,12.33162297,137.94,137.9,18.1287]
[1719386369244,7.29302934,137.94,137.9,18.1287]
[1719386369947,0.04312934,137.94,137.91,7.2509]
[1719386370266,0.04312934,137.94,137.93,7.25]
[1719386370420,5.88476423,137.99,137.95,7.2485]
[1719386370621,0.8461706,137.99,137.96,18.1202]
[1719386370946,0.8461706,137.99,137.98,7.2474]
[1719386371116,0.8461706,137.99,137.96,18.1202]
[1719386371319,0.8461706,137.99,137.96,25.3684]
[1719386371546,0.8461706,137.99,137.95,23.7494]
[1719386371755,0.8461706,137.99,137.95,16.5005]
[1719386371919,8.0931706,137.99,137.95,16.5005]
[1719386372249,0.8461706,137.99,137.95,23.7493]
[1719386372455,5.88476423,137.99,137.96,7.2483]
[1719386372639,5.88476423,137.99,137.95,23.7493]
[1719386372832,5.88476423,137.99,137.96,7.2484]
[1719386373352,0.8461706,137.99,137.98,7.2474]
[1719386373538,20.8461706,137.99,137.98,7.2474]
[1719386373720,0.8461706,137.99,137.98,7.2474]
[1719386373926,0.8461706,137.99,137.98,7.85264161]
[1719386374353,20.0,138.05,137.98,6.98214161]
[1719386374543,20.0,138.05,138.02,7.245]
[1719386374735,5.03859363,138.05,138.02,7.245]
[1719386375159,5.03859363,138.05,138.01,25.3596]
[1719386375319,7.242,138.09,138.04,7.2441]
[1719386375648,7.2422,138.08,138.04,7.2441]
[1719386375828,5.7422,138.08,138.04,7.2441]
[1719386376164,7.2436,138.06,138.02,7.2452]
[1719386376458,7.2428,138.07,138.02,7.2452]
[1719386376647,7.2435,138.06,138.0,25.531]
[1719386376951,5.03859363,138.05,138.01,7.2458]
[1719386377149,12.28239363,138.05,138.0,18.1152]
[1719386377446,25.03859363,138.04,137.98,6.0369]
[1719386377648,5.03859363,138.08,138.0,18.1157]
[1719386377951,20.0,138.07,138.0,18.1157]
[1719386378134,5.03859363,138.06,138.0,18.1157]
[1719386378328,20.0,138.05,138.01,7.2457]
[1719386378831,20.0,138.05,138.0,18.1157]
[1719386379043,12.28289363,138.04,137.99,7.2463]
[1719386379249,27.2449,138.03,137.98,13.2841]
[1719386379550,32.28349363,138.03,137.99,7.2468]
[1719386379729,27.2449,138.03,137.99,7.2468]
[1719386380057,20.0,138.03,137.99,7.2468]
[1719386380251,25.03859363,138.03,138.0,7.2462]
[1719386380566,32.28339363,138.03,137.99,7.2468]
[1719386381127,25.03859363,138.03,137.97,18.1194]
[1719386381324,12.28439363,138.02,137.97,7.2474]
[1719386381553,20.0,138.01,137.97,7.2474]
[1719386381847,5.03859363,138.0,137.97,7.2474]
[1719386382667,5.03859363,138.0,137.96,25.3688]
[1719386383452,12.28499363,138.0,137.96,18.1205]
[1719386383826,20.0,138.01,137.96,7.2483]
[1719386383827,20.0,137.99,137.96,7.2483]
[1719386384024,20.0,138.01,137.97,7.2475]
[1719386384232,25.03859363,138.01,137.97,7.2475]
[1719386384439,27.2458,138.01,137.97,7.2477]
[1719386384621,20.0,138.01,137.97,7.2477]
[1719386384820,25.03859363,138.01,137.97,7.2477]
[1719386385239,32.28449363,138.01,137.97,7.2477]
[1719386385846,5.03859363,138.0,137.96,7.2483]
[1719386386045,20.0,137.99,137.95,18.1215]
[1719386386742,7.2459,138.01,137.96,7.248]
[1719386386932,20.0,138.0,137.96,7.2483]
[1719386387462,20.0,138.0,137.97,7.2479]
[1719386387665,27.2464,138.0,137.96,7.2483]
[1719386389257,20.0,138.0,137.97,18.1193]
[1719386389461,20.0,138.01,137.97,25.3669]
[1719386389634,25.03859363,138.01,137.97,25.3669]
[1719386390540,32.28479363,138.01,137.97,18.1193]
[1719386390852,32.28479363,138.01,137.97,25.3671]
[1719386391856,20.0,138.01,137.97,18.1193]
[1719386392071,7.2454,138.02,137.98,7.2472]
[1719386392273,25.03859363,138.01,137.98,7.2472]
[1719386392636,25.03859363,138.01,137.97,18.1193]
[1719386392938,25.03859363,138.01,137.97,25.367]
[1719386393265,32.28449363,138.01,137.97,25.367]
[1719386393760,32.28449363,138.01,137.94,24.647]
[1719386393761,25.03859363,138.01,137.94,24.647]
[1719386394341,32.28449363,138.01,137.97,7.2478]
[1719386395669,7.2465,138.0,137.96,25.369]
[1719386396874,25.03859363,138.01,137.97,7.2478]
[1719386397175,32.28489363,138.01,137.96,18.1207]
[1719386398246,32.28489363,138.01,137.97,7.2478]
[1719386398876,7.2465,138.0,137.96,25.369]
[1719386399550,32.28449363,138.01,137.97,7.2479]
[1719386400382,25.03859363,138.01,137.98,7.2473]
[1719386400664,32.28449363,138.01,137.96,25.3689]
[1719386401250,25.03859363,138.01,137.96,18.1207]
[1719386401454,25.03859363,138.01,137.94,6.5239]
[1719386401655,7.2467,138.0,137.95,18.1221]
[1719386401857,25.03859363,137.99,137.95,25.3709]
[1719386402575,20.0,137.99,137.96,7.2483]
[1719386402753,27.247,137.99,137.95,25.371]
[1719386403165,20.0,137.99,137.95,25.371]
[1719386404057,20.0,137.99,137.95,18.1221]
[1719386404254,7.2484,137.96,137.92,25.3756]
[1719386404874,7.249,137.95,137.92,18.1254]
[1719386405111,5.03859363,137.98,137.92,25.3759]
[1719386405252,7.249,137.95,137.91,7.2509]
[1719386405463,20.0,137.99,137.9,7.2514]
[1719386405464,7.2495,137.94,137.9,7.2514]
[1719386407078,7.2499,137.94,137.9,7.2514]
[1719386407445,7.2499,137.94,137.89,25.3812]
[1719386407674,7.2504,137.93,137.89,25.3812]
[1719386407855,7.2496,137.94,137.9,7.2514]
[1719386408266,23.15739363,137.98,137.91,18.1275]
[1719386408467,18.1112,138.04,137.96,18.1207]
[1719386408670,25.03859363,138.03,137.96,18.1207]
[1719386408888,7.2459,138.01,137.97,7.2476]
[1719386409070,12.28449363,138.01,137.97,7.2476]
[1719386409466,27.2451,138.03,137.99,7.2468]
[1719386409994,8.09,138.05,138.01,7.2457]
[1719386410170,20.0,138.04,138.01,7.2457]
[1719386410371,20.0,138.04,138.0,18.1155]
[1719386410372,27.2444,138.04,138.0,25.3617]
[1719386410592,5.03859363,138.03,137.97,18.1191]
[1719386410780,6.77349363,138.06,137.97,18.1191]
[1719386410976,24.88189363,138.06,137.97,18.1191]
[1719386411177,7.2454,138.02,137.97,25.3669]
[1719386411383,7.2454,138.02,137.98,7.2473]
[1719386411590,7.2454,138.02,137.97,18.1191]
[1719386411785,7.246,138.01,137.97,25.3669]
[1719386411986,7.2453,138.02,137.98,7.2474]
[1719386412293,7.2463,138.0,137.97,18.1191]
[1719386412700,7.2471,137.99,137.95,7.2489]
[1719386413693,7.2464,138.0,137.95,7.2489]
[1719386413881,20.0,137.99,137.96,7.2484]
[1719386414475,5.03859363,138.03,137.97,0.85911739]
[1719386414688,2.5808,138.06,137.97,0.85911739]
[1719386414689,12.28239363,138.05,138.01,7.2457]
[1719386414896,25.03859363,138.04,138.0,25.3617]
[1719386415088,20.0,138.04,138.01,7.2457]
[1719386415386,25.03859363,138.04,138.0,25.3617]
[1719386415583,5.03859363,138.06,138.02,18.1125]
[1719386415803,12.28109363,138.08,138.04,7.2441]
[1719386415972,2.5808,138.1,138.05,7.2436]
[1719386415973,20.0,138.07,138.05,7.2436]
[1719386416489,20.0,138.07,138.04,7.2441]
[1719386417087,20.0,138.07,138.03,7.2446]
[1719386417492,27.2427,138.07,138.03,7.2446]
[1719386417698,5.03859363,138.06,138.02,25.3576]
[1719386418202,5.03859363,138.06,138.03,7.2446]
[1719386418376,27.243,138.07,138.03,7.2446]
[1719386418705,7.2433,138.06,138.02,18.1125]
[1719386418911,32.28139363,138.07,138.02,25.3577]
[1719386419496,27.2428,138.07,138.03,7.2447]
[1719386420300,7.2432,138.06,138.02,25.3578]
[1719386420600,12.28179363,138.06,138.02,25.3578]
[1719386421207,5.03859363,138.06,138.02,25.3578]
[1719386422101,12.28179363,138.06,138.02,25.3578]
[1719386422617,20.0,138.05,137.99,18.1163]
[1719386422907,7.2451,138.03,137.99,18.1163]
[1719386423406,11.57254206,138.02,137.98,7.2473]
[1719386423708,7.2459,138.01,137.97,7.2479]
[1719386423919,12.28499363,138.0,137.96,25.3684]
[1719386424313,5.03859363,137.99,137.96,25.3685]
[1719386424514,5.03859363,138.0,137.96,25.3685]
[1719386425018,7.246,138.01,137.97,7.2477]
[1719386425328,7.2452,138.03,137.99,7.2468]
[1719386425496,25.03859363,138.02,137.99,7.2468]
[1719386425701,25.03859363,138.02,137.98,18.1182]
[1719386425911,32.28409363,138.02,137.98,18.1182]
[1719386426094,32.28409363,138.02,137.98,25.3654]
[1719386426095,25.03859363,138.02,137.98,25.3654]
[1719386426295,25.03859363,138.02,137.98,18.1182]
[1719386426714,25.03859363,138.02,137.98,25.3652]
[1719386427406,32.28399363,138.02,137.98,18.1182]
[1719386427654,7.2459,138.01,137.96,7.2483]
[1719386427801,5.03859363,138.0,137.96,7.2483]
[1719386428123,5.03859363,138.0,137.95,25.3705]
[1719386428629,5.03859363,138.0,137.95,18.1216]
[1719386428929,12.28479363,138.01,137.97,7.2478]
[1719386429926,5.03859363,138.01,137.98,7.2473]
[1719386431229,20.0,138.02,137.99,7.2468]
[1719386433121,27.2453,138.02,137.98,7.2473]
[1719386433722,27.2453,138.02,137.97,25.3675]
[1719386433723,11.57709449,138.01,137.97,25.3675]
[1719386434505,7.2464,138.0,137.96,7.2483]
[1719386435409,11.57709449,138.01,137.97,7.2479]
[1719386436421,25.03859363,138.02,137.98,18.1182]
[1719386436631,20.0,138.02,137.98,18.1182]
[1719386437133,32.28399363,138.02,137.98,18.1182]
[1719386437809,5.03859363,138.01,137.98,18.1182]
[1719386438131,12.28439363,138.01,137.98,18.1182]
[1719386438324,5.03859363,138.01,137.98,18.1182]
[1719386438828,20.0,138.02,137.99,7.2466]
[1719386439013,27.2454,138.02,137.98,25.3655]
[1719386439200,32.28399363,138.02,137.98,25.3655]
[1719386440230,27.2454,138.02,137.98,25.3655]
[1719386441232,6.77349363,138.04,137.99,1.13094031]
[1719386441399,7.2446,138.04,138.0,7.2462]
[1719386442406,7.2448,138.03,137.99,8.37764031]
[1719386445228,5.88449363,138.07,137.95,18.1214]
[1719386445404,7.2455,138.02,137.98,7.2473]
[1719386445606,7.2463,138.01,137.97,25.3675]
[1719386446334,7.2454,138.02,137.98,7.2473]
[1719386446739,12.28349363,138.03,137.99,8.84844151]
[1719386446943,7.2449,138.03,137.99,7.2468]
[1719386447107,7.2444,138.04,138.0,7.2463]
[1719386447424,18.9537,138.07,138.01,7.2457]
[1719386447425,20.0,138.03,138.01,7.2457]
[1719386447933,12.28229363,138.05,138.01,25.3594]
[1719386448112,7.2437,138.05,138.02,7.2453]
[1719386448306,7.2433,138.06,138.02,7.2453]
[1719386448502,25.03859363,138.05,138.02,7.2453]
[1719386448839,32.28249363,138.05,138.01,25.3598]
[1719386449617,27.2439,138.05,138.01,25.3598]
[1719386451617,7.2455,138.02,137.98,25.3646]
[1719386452210,5.03859363,138.01,137.98,25.3646]
[1719386452411,5.03859363,138.01,137.98,18.1176]
[1719386452811,7.2455,138.02,137.98,25.3648]
[1719386455145,7.2458,138.01,137.98,25.3648]
[1719386455339,20.0,138.0,137.95,25.3703]
[1719386455636,12.28589363,137.99,137.95,25.3703]
[1719386456810,5.03859363,137.99,137.96,7.2484]
[1719386457739,5.03859363,137.99,137.95,18.1215]
[1719386458610,20.0,138.0,137.95,18.1215]
[1719386458812,5.03859363,137.99,137.95,18.1215]
[1719386459116,7.2466,138.0,137.96,7.2484]
[1719386459439,4.60369038,137.99,137.96,7.2484]
[1719386460241,4.60369038,137.99,137.97,7.2479]
[1719386460444,25.03859363,138.0,137.97,7.2479]
[1719386461934,7.2472,137.99,137.95,25.3704]
[1719386462137,5.03859363,137.98,137.95,25.3704]
[1719386462437,7.2472,137.99,137.96,7.2483]
[1719386462438,5.03859363,137.99,137.96,7.2483]
[1719386462642,25.03859363,138.0,137.97,7.2477]
[1719386462957,25.03859363,138.0,137.96,7.2482]
[1719386462958,32.28489363,138.0,137.96,7.2482]
[1719386463158,7.247,137.99,137.95,25.3703]
[1719386463360,5.03859363,137.98,137.93,6.0154]
[1719386463818,5.03859363,137.98,137.95,7.2486]
[1719386466654,12.28609363,137.98,137.94,25.3729]
[1719386466947,5.03859363,137.97,137.94,25.3729]
[1719386467151,7.2475,137.98,137.94,25.3729]
[1719386467447,12.28609363,137.98,137.94,25.3729]
[1719386467643,5.03859363,137.98,137.91,18.1269]
[1719386467953,7.2496,137.94,137.89,7.2516]
[1719386468244,7.2496,137.94,137.88,41.3872]
[1719386468245,7.2509,137.92,137.88,42.0109]
[1719386468452,5.03859363,137.92,137.89,7.2521]
[1719386469032,5.03859363,137.92,137.85,40.4911]
[1719386469242,7.2514,137.91,137.87,7.2528]
[1719386469834,7.2506,137.92,137.88,7.2526]
[1719386470035,7.2502,137.93,137.89,7.252]
[1719386470235,20.0,137.92,137.89,7.252]
[1719386470443,20.0,137.92,137.87,18.1322]
[1719386470444,5.03859363,137.91,137.88,7.2524]
[1719386470645,20.0,137.92,137.88,7.2524]
[1719386470843,7.2496,137.94,137.9,7.2515]
[1719386471041,12.28759363,137.95,137.91,7.2507]
[1719386471354,12.28759363,137.95,137.9,7.2514]
[1719386471355,27.2495,137.94,137.9,7.2514]
[1719386471657,20.0,137.94,137.91,7.2508]
[1719386472060,27.2495,137.94,137.9,7.2514]
[1719386472240,32.28809363,137.94,137.9,7.2514]
[1719386472554,25.03859363,137.94,137.9,7.2514]
[1719386473026,32.28819363,137.94,137.9,7.2514]
[1719386473249,25.03859363,137.94,137.91,7.251]
[1719386473449,5.03859363,137.97,137.95,7.2488]
[1719386473659,5.03859363,137.99,137.93,18.1245]
[1719386473945,32.28619363,137.98,137.94,7.2492]
[1719386474334,25.03859363,137.98,137.93,18.1245]
[1719386474527,32.28629363,137.98,137.94,7.2493]
[1719386474928,27.2477,137.98,137.93,25.3743]
[1719386475161,32.28629363,137.98,137.93,25.3743]
[1719386475455,7.248,137.97,137.93,25.3743]
[1719386475841,32.28599363,137.98,137.94,7.2494]
[1719386476150,7.248,137.97,137.93,25.3742]
[1719386476355,5.03859363,137.96,137.93,25.3742]
[1719386476833,12.28699363,137.96,137.93,18.1245]
[1719386477247,12.28699363,137.96,137.85,60.59953106]
[1719386477248,7.2502,137.93,137.9,18.1285]
[1719386477555,7.2504,137.93,137.89,7.2521]
[1719386477731,18.1218,137.96,137.87,34.1918]
[1719386477732,5.03859363,137.92,137.87,34.1918]
[1719386477933,5.03859363,137.95,137.87,34.1918]
[1719386478154,7.25,137.93,137.89,7.2517]
[1719386478355,5.03859363,137.92,137.9,7.2515]
[1719386478539,5.03859363,137.93,137.9,7.2515]
[1719386479343,5.03859363,137.92,137.89,25.382]
[1719386479551,7.2496,137.94,137.89,25.382]
[1719386479750,27.2502,137.93,137.89,25.382]
[1719386480654,5.03859363,137.92,137.89,25.382]
[1719386480848,5.03859363,137.92,137.87,16.0599]
[1719386480849,20.0,137.93,137.91,18.1271]
[1719386481048,20.0,137.94,137.91,18.1271]
[1719386481362,20.0,137.94,137.92,7.2505]
[1719386481548,20.0,137.94,137.91,18.1271]
[1719386481730,20.0,137.94,137.91,25.3781]
[1719386481731,25.03859363,137.94,137.91,25.3781]
[1719386482136,32.28839363,137.94,137.9,7.2514]
[1719386482542,25.03859363,137.94,137.91,7.251]
[1719386483064,25.03859363,137.94,137.9,28.66050383]
[1719386483359,32.28809363,137.94,137.9,28.66050383]
[1719386483564,27.2495,137.94,137.9,28.66050383]
[1719386484162,5.88449363,137.98,137.91,7.2506]
[1719386484359,20.0,137.97,137.87,52.3238]
[1719386484659,20.0,137.97,137.94,18.1234]
[1719386484865,32.28639363,137.98,137.94,25.3727]
[1719386485045,32.28639363,137.98,137.94,18.1234]
[1719386485462,7.2481,137.97,137.93,7.2498]
[1719386485652,12.28669363,137.97,137.93,7.2498]
[1719386486140,32.28599363,137.98,137.94,7.2494]
[1719386486846,25.03859363,137.98,137.95,18.1219]
[1719386487362,20.0,137.98,137.95,18.1219]
[1719386487959,32.28619363,137.98,137.94,7.2493]
[1719386488263,7.2479,137.97,137.93,7.2499]
[1719386489349,32.28619363,137.98,137.93,7.2499]
[1719386489868,7.249,137.95,137.91,13.744]
[1719386490185,25.03859363,137.98,137.93,18.1248]
[1719386490366,25.03859363,137.98,137.95,18.1221]
[1719386490367,20.0,137.98,137.95,18.1221]
[1719386490571,25.03341574,137.98,137.95,18.1221]
[1719386491365,32.28091574,137.98,137.95,18.1221]
[1719386492248,32.28091574,137.98,137.94,7.2494]
[1719386492249,1.7349,138.04,137.97,18.1194]
[1719386492459,7.2449,138.03,137.99,7.2468]
[1719386492654,20.0,138.02,137.99,7.2468]
[1719386492856,25.03859363,138.02,137.99,7.2468]
[1719386493251,32.28389363,138.02,137.98,7.2472]
[1719386493564,32.28389363,138.02,137.95,7.2489]
[1719386493565,5.03859363,138.01,137.95,7.2489]
[1719386493750,7.2467,138.0,137.96,0.54863088]
[1719386493944,5.03859363,138.01,137.96,7.79703088]
[1719386494150,5.03859363,138.01,137.96,18.66943088]
[1719386494447,5.03859363,138.01,137.97,9.5289911]
[1719386494648,5.03859363,138.01,137.98,7.2473]
[1719386495062,1.7349,138.04,137.99,2.28106043]
[1719386495240,0.8459,138.05,137.99,9.52786043]
[1719386495241,7.2449,138.03,137.99,9.52786043]
[1719386496172,7.2449,138.03,137.98,25.3654]
[1719386496555,18.1096,138.05,137.98,18.1182]
[1719386496761,7.2462,138.01,137.97,7.2475]
[1719386496955,5.03859363,138.04,137.98,7.2472]
[1719386497179,20.0,138.03,137.98,7.2472]
[1719386497478,12.28419363,138.02,137.98,7.2472]
[1719386497775,20.0,138.03,137.97,25.367]
[1719386497776,12.28459363,138.01,137.97,25.367]
[1719386497979,5.03859363,138.01,137.95,6.1248]
[1719386498573,12.28459363,138.01,137.97,7.2476]
[1719386499171,12.28459363,138.01,137.96,25.3689]
[1719386499172,7.2463,138.0,137.96,25.3689]
[1719386499475,7.2459,138.01,137.97,7.2479]
[1719386499973,7.2464,138.0,137.96,25.369]
[1719386500354,5.03859363,138.02,137.93,33.9685]
[1719386500547,25.03859363,138.01,137.93,33.9685]
[1719386500768,5.03859363,138.01,137.93,33.9685]
[1719386501073,7.2472,137.99,137.95,7.2486]
[1719386501754,7.2474,137.98,137.94,7.2493]
[1719386505083,7.2474,137.98,137.94,7.86069129]
[1719386505559,7.2485,137.96,137.92,13.2953]
[1719386505761,5.03859363,138.0,137.9,18.1282]
[1719386505961,38.1175,137.99,137.9,18.1282]
[1719386506161,5.03859363,137.98,137.92,18.1262]
[1719386506376,7.2485,137.96,137.92,25.3766]
[1719386506576,12.28709363,137.96,137.92,25.3766]
[1719386506876,20.0,137.97,137.94,18.1232]
[1719386507287,20.0,138.0,137.94,18.1232]
[1719386507478,5.03859363,137.99,137.94,18.1232]
[1719386507667,20.0,137.98,137.95,7.2488]
[1719386508186,27.2474,137.98,137.94,25.3725]
[1719386508370,5.03859363,138.01,137.98,7.2474]
[1719386508691,20.0,138.0,137.98,7.2474]
[1719386508857,20.0,138.01,137.98,7.2474]
[1719386509768,32.28439363,138.01,137.97,7.2477]
[1719386510217,27.2458,138.01,137.97,7.2477]
[1719386510772,7.2473,137.99,137.95,22.8913]
[1719386512685,12.28609363,137.98,137.94,7.2494]
[1719386513591,5.03859363,137.98,137.95,7.249]
[1719386514066,5.03859363,137.98,137.93,18.1241]
[1719386514271,7.2476,137.98,137.93,25.3737]
[1719386514491,7.247,137.99,137.93,18.1241]
[1719386514695,25.03859363,137.98,137.95,7.2489]
[1719386515069,32.28599363,137.98,137.94,7.2493]
[1719386515786,25.03859363,137.98,137.95,18.122]
[1719386515973,20.0,137.98,137.95,18.122]
[1719386516169,20.0,137.98,137.95,25.3707]
[1719386516492,20.0,137.98,137.96,7.2483]
[1719386516696,25.03859363,137.99,137.96,7.2483]
[1719386517270,3.6635267,137.98,137.95,25.3708]
[1719386517591,27.2469,137.99,137.95,25.3708]
[1719386518363,4.81920266,137.98,137.95,25.3708]
[1719386518691,27.2469,137.99,137.95,25.3708]
[1719386519097,27.2469,137.99,137.92,18.1255]
[1719386519098,5.03859363,137.98,137.92,18.1255]
[1719386519590,12.28609363,137.98,137.94,7.2491]
[1719386520107,5.03859363,137.98,137.95,7.2489]
[1719386520278,12.28599363,137.98,137.94,25.3729]
[1719386521172,27.2481,137.97,137.93,7.25]
[1719386521774,20.0,137.97,137.94,7.2495]
[1719386522008,25.03859363,137.97,137.94,7.2495]
[1719386522302,32.28649363,137.97,137.93,25.3747]
[1719386523398,20.0,137.97,137.93,18.1249]
[1719386523577,20.0,137.98,137.95,7.2489]
[1719386523995,5.03859363,137.97,137.94,7.2493]
[1719386524899,12.28659363,137.97,137.93,25.3748]
[1719386525801,5.03859363,137.97,137.94,7.2494]
[1719386528979,7.2453,138.02,137.98,7.2472]
[1719386529178,5.03859363,138.01,137.98,7.2472]
[1719386529380,7.2464,138.0,137.97,18.1196]
[1719386529593,5.03859363,137.99,137.97,18.1196]
[1719386529794,5.03859363,137.99,137.94,18.1227]
[1719386529795,7.2469,137.99,137.94,18.1227]
[1719386530111,7.2469,137.99,137.95,7.2486]
[1719386530301,7.2464,138.0,137.96,7.2483]
[1719386530500,25.03859363,137.99,137.94,18.1227]
[1719386531505,7.2477,137.98,137.94,25.372]
[1719386531709,5.03859363,137.97,137.94,25.372]
[1719386531879,7.2485,137.96,137.92,7.2502]
[1719386532084,5.03859363,137.95,137.93,7.2499]
[1719386532282,12.28699363,137.96,137.92,7.2503]
[1719386532516,5.03859363,137.95,137.93,7.25]
[1719386532689,5.03859363,137.96,137.93,7.25]
[1719386533182,5.03859363,137.95,137.92,7.2505]
[1719386533617,12.28769363,137.95,137.91,18.1266]
[1719386533910,12.28769363,137.95,137.91,25.3773]
[1719386534110,5.03859363,137.95,137.91,25.3773]
[1719386534297,5.03859363,137.94,137.91,25.3773]
[1719386535295,7.2486,137.96,137.91,25.3773]
[1719386535507,20.0,137.95,137.91,25.3773]
[1719386536001,27.249,137.95,137.91,18.1266]
[1719386536315,12.28819363,137.94,137.91,18.1266]
[1719386536693,12.28819363,137.94,137.9,7.2515]
[1719386537314,7.25,137.93,137.89,7.252]
[1719386537491,5.03859363,137.92,137.89,7.252]
[1719386537889,5.03859363,137.92,137.9,7.2516]
[1719386538114,20.0,137.93,137.91,7.2511]
[1719386538321,20.0,137.94,137.88,26.53]
[1719386539528,20.0,137.94,137.92,25.3758]
[1719386539699,20.0,137.96,137.89,18.1293]
[1719386540023,7.2502,137.93,137.89,25.3814]
[1719386540201,5.03859363,137.92,137.89,18.1293]
[1719386540402,0.17,137.96,137.89,25.3814]
[1719386540403,7.2505,137.93,137.89,25.3814]
[1719386540786,7.2495,137.94,137.9,7.2514]
[1719386541096,20.0,137.93,137.89,18.1293]
[1719386541301,20.0,137.93,137.9,7.2515]
[1719386541612,25.03859363,137.93,137.89,18.1293]
[1719386541818,25.03859363,137.93,137.89,25.3812]
[1719386542523,32.28869363,137.93,137.89,25.3812]
[1719386542726,27.2501,137.93,137.89,25.3812]
[1719386543020,20.0,137.93,137.9,7.2516]
[1719386543390,20.0,137.93,137.91,7.2509]
[1719386543592,20.0,137.94,137.91,7.2509]
[1719386544222,27.2495,137.94,137.9,7.2514]
[1719386544509,7.2503,137.93,137.89,25.3812]
[1719386544904,27.2497,137.94,137.89,25.3812]
[1719386545217,12.28869363,137.93,137.89,25.3812]
[1719386547250,20.0,137.94,137.91,18.1274]
[1719386547414,27.2491,137.95,137.91,25.3784]
[1719386547612,25.03859363,137.95,137.91,18.1274]
[1719386547814,20.0,137.95,137.88,26.53]
[1719386548015,7.2493,137.95,137.91,7.251]
[1719386548247,20.0,137.94,137.91,7.251]
[1719386548442,27.2495,137.94,137.9,25.3803]
[1719386549316,32.28809363,137.94,137.9,25.3803]
[1719386549511,27.2495,137.94,137.9,25.3803]
[1719386550639,5.03859363,137.97,137.94,7.2491]
[1719386550846,5.03859363,138.0,137.96,7.2479]
[1719386551012,20.0,138.0,137.97,7.2479]
[1719386551209,20.0,138.0,137.91,21.5463]
[1719386551210,7.2453,138.02,137.98,7.2473]
[1719386551434,12.28389363,138.02,137.98,7.2473]
[1719386552124,12.28449363,138.01,137.96,59.164]
[1719386552445,7.2459,138.01,137.97,7.2478]
[1719386554243,7.2454,138.02,137.97,7.2478]
[1719386554453,25.03859363,138.01,137.96,18.121]
[1719386554618,7.2467,138.0,137.96,18.121]
[1719386554815,5.03859363,137.99,137.96,18.121]
[1719386555018,12.28549363,137.99,137.96,18.121]
[1719386555513,12.28549363,137.99,137.94,7.2493]
[1719386555946,12.28609363,137.98,137.93,25.3744]
[1719386556156,12.28509363,138.0,137.95,7.2485]
[1719386556338,20.0,137.99,137.97,7.2475]
[1719386556641,20.0,137.99,137.97,25.3671]
[1719386556845,5.03859363,138.01,137.99,18.1168]
[1719386557138,6.77349363,138.04,137.99,18.1168]
[1719386557324,25.84610662,138.12,138.01,18.114]
[1719386557325,1.7349,138.08,138.01,18.114]
[1719386557527,7.2435,138.06,138.02,7.2452]
[1719386557734,20.0,138.05,138.02,7.2452]
[1719386558247,0.8459,138.09,138.05,7.2437]
[1719386558248,5.03859363,138.07,138.05,7.2437]
[1719386558444,5.03859363,138.08,138.06,7.243]
[1719386558759,5.03859363,138.08,138.05,18.1088]
[1719386559416,5.03859363,138.11,138.05,18.1088]
[1719386559619,25.03859363,138.1,138.05,18.1088]
[1719386559954,25.03859363,138.1,137.99,36.2325]
[1719386559955,25.03859363,138.1,138.04,7.2442]
[1719386560260,7.2432,138.06,138.02,25.3576]
[1719386560414,7.2428,138.07,138.03,7.2447]
[1719386560624,25.03859363,138.06,138.02,25.3576]